bitfinex-derivatives/quotes_ETHF0:USTF0_20250420
["timestamp","ask_amount","ask_price","bid_price","bid_amount"]
[1745114166084,1.23634,1617.8,1617.7,3.68831223]
[1745114166281,1.23634,1617.8,1617.7,5.91631223]
[1745114167391,1.23634,1617.8,1617.7,5.9163972]
[1745114168091,1.23634,1617.8,1617.7,5.9163949]
[1745114168595,1.23634,1617.8,1617.7,4.6799749]
[1745114169385,1.23634,1617.8,1617.7,5.9163949]
[1745114169785,1.23634,1617.8,1617.7,7.5895949]
[1745114170992,2.82504,1617.8,1617.7,7.5895949]
[1745114171192,2.82504,1617.8,1617.7,7.58949744]
[1745114171688,2.82504,1617.8,1617.7,7.5893977]
[1745114171896,7.06264,1618.0,1617.8,1.23634]
[1745114172092,6.79689,1618.0,1617.9,1.6834]
[1745114173179,6.79689,1618.0,1617.9,3.9114]
[1745114174091,6.79689,1618.0,1617.9,1.6834]
[1745114174992,1.23619,1618.0,1617.9,2.91966]
[1745114175199,5.20719,1618.0,1617.9,5.97045437]
[1745114175589,5.20719,1618.0,1617.9,6.82705437]
[1745114176398,5.20719,1618.0,1617.9,5.59079437]
[1745114177199,5.20719,1618.0,1617.9,3.36279437]
[1745114178099,5.20719,1618.0,1617.9,4.59905437]
[1745114178901,5.20719,1618.0,1617.9,3.36279437]
[1745114179699,5.20719,1618.0,1617.9,4.59905437]
[1745114180388,5.20719,1618.0,1617.9,3.36279437]
[1745114180893,5.20719,1618.0,1617.9,4.59905437]
[1745114181099,5.20719,1618.0,1617.9,3.36279437]
[1745114181689,5.20719,1618.0,1617.9,4.59905437]
[1745114183200,5.20719,1618.0,1617.9,4.59887689]
[1745114185102,5.20719,1618.0,1617.9,4.59923091]
[1745114186996,5.20719,1618.0,1617.9,4.59930509]
[1745114188608,5.20719,1618.0,1617.9,3.36304509]
[1745114189009,5.20719,1618.0,1617.9,4.59930509]
[1745114191519,5.20719,1618.0,1617.9,3.36304509]
[1745114192021,6.95719,1618.0,1617.9,2.50644509]
[1745114192207,7.80729,1618.0,1617.9,2.50644509]
[1745114192516,12.80729,1618.0,1617.9,0.82304509]
[1745114192717,1.23626,1617.9,1617.8,8.19089779]
[1745114193019,3.82276,1617.9,1617.8,9.01435668]
[1745114193720,3.82276,1617.9,1617.8,0.82345889]
[1745114194521,3.82283,1617.9,1617.8,2.0598682]
[1745114194821,1.23633,1617.9,1617.8,4.4492682]
[1745114195215,1.23633,1617.9,1617.8,3.2129282]
[1745114195414,2.93963,1617.9,1617.8,3.2129282]
[1745114195715,3.75793,1617.9,1617.8,3.2129282]
[1745114197321,3.75793,1617.9,1617.8,4.4492682]
[1745114197523,3.75793,1617.9,1617.8,4.44929188]
[1745114197816,3.75793,1617.9,1617.8,2.3894]
[1745114198224,3.75793,1617.9,1617.8,3.21293205]
[1745114198413,1.23633,1617.9,1617.8,3.21293205]
[1745114198614,1.23633,1617.9,1617.8,2.3894]
[1745114198814,1.23633,1617.9,1617.8,3.21296736]
[1745114199013,5.20724,1618.0,1617.8,3.21296736]
[1745114199214,5.20724,1618.0,1617.9,2.44216736]
[1745114199618,5.20724,1618.0,1617.9,3.6783702]
[1745114200320,5.20724,1618.0,1617.9,2.4421102]
[1745114200925,5.20724,1618.0,1617.9,3.6783702]
[1745114202519,5.20724,1618.0,1617.9,2.4421102]
[1745114203828,5.20724,1618.0,1617.9,3.6783702]
[1745114204928,5.20724,1618.0,1617.9,2.4421102]
[1745114205124,5.20724,1618.0,1617.9,3.67841995]
[1745114207030,5.20724,1618.0,1617.9,3.6784026]
[1745114209332,5.20724,1618.0,1617.9,2.4421426]
[1745114209834,5.20724,1618.0,1617.9,3.6784026]
[1745114210031,6.90784,1618.0,1617.9,3.6784026]
[1745114210834,6.90784,1618.0,1617.9,3.67861128]
[1745114214040,6.90784,1618.0,1617.9,2.44235128]
[1745114214634,6.90784,1618.0,1617.9,2.85486]
[1745114214840,6.90784,1618.0,1617.9,3.67866091]
[1745114216432,5.20724,1618.0,1617.9,3.67866091]
[1745114216832,5.20724,1618.0,1617.9,4.54796091]
[1745114217340,5.20724,1618.0,1617.9,3.31170091]
[1745114217532,5.20724,1618.0,1617.9,4.54796091]
[1745114218338,5.20724,1618.0,1617.9,3.31170091]
[1745114218339,6.96064,1618.0,1617.9,3.31170091]
[1745114218539,6.96064,1618.0,1617.9,4.54836375]
[1745114221538,6.96064,1618.0,1617.9,3.72416]
[1745114221742,6.96064,1618.0,1617.9,4.54847248]
[1745114221931,6.96064,1618.0,1617.9,4.54847475]
[1745114223543,6.96064,1618.0,1617.9,4.54856115]
[1745114223950,6.96064,1618.0,1617.9,3.31230115]
[1745114224351,7.77594,1618.0,1617.9,4.54856115]
[1745114224548,7.77594,1618.0,1617.9,3.31230115]
[1745114225350,7.77594,1618.0,1617.9,3.31247073]
[1745114226547,7.77594,1618.0,1617.9,4.54873073]
[1745114228551,6.96064,1618.0,1617.9,4.54873073]
[1745114228750,5.20724,1618.0,1617.9,4.54873073]
[1745114229137,5.20724,1618.0,1617.9,4.5489066]
[1745114229753,5.20724,1618.0,1617.9,3.3126466]
[1745114229954,5.20724,1618.0,1617.9,0.8247466]
[1745114230143,7.71384,1618.0,1617.9,2.0610066]
[1745114230545,6.84514,1618.0,1617.9,3.7577066]
[1745114230744,6.84514,1618.0,1617.9,5.4377066]
[1745114230944,5.20724,1618.0,1617.9,5.4377066]
[1745114232956,5.20724,1618.0,1617.9,5.43797815]
[1745114234946,5.20724,1618.0,1617.9,5.43839313]
[1745114236758,5.20724,1618.0,1617.9,5.43847254]
[1745114236759,6.79574,1618.0,1617.9,5.43847254]
[1745114237156,6.79574,1618.0,1617.9,2.52221254]
[1745114237351,7.61614,1618.0,1617.9,0.82551254]
[1745114238258,1.23626,1617.9,1617.8,11.39869779]
[1745114238457,3.68276,1617.9,1617.8,12.66155211]
[1745114238657,3.68276,1617.9,1617.8,12.22423979]
[1745114238855,3.68276,1617.9,1617.8,9.01643979]
[1745114239259,5.91076,1617.9,1617.8,8.19089779]
[1745114240150,8.68276,1617.9,1617.8,8.19089779]
[1745114241158,10.91076,1617.9,1617.8,8.19089779]
[1745114245272,1.23649,1617.6,1617.5,3.2078]
[1745114245464,1.23649,1617.6,1617.5,4.03183235]
[1745114246166,1.23649,1617.6,1617.5,4.03162007]
[1745114246362,1.23649,1617.6,1617.5,4.03163584]
[1745114246568,2.90689,1617.6,1617.5,4.03146688]
[1745114246758,2.90689,1617.6,1617.5,3.2078]
[1745114246956,1.23657,1617.5,1617.4,8.19089779]
[1745114247157,3.72297,1617.5,1617.4,10.41889779]
[1745114247358,14.63097,1617.5,1617.4,9.06058779]
[1745114247756,14.63097,1617.5,1617.4,6.02296779]
[1745114247952,15.12290267,1617.5,1617.4,3.9308278]
[1745114248168,17.35090267,1617.5,1617.4,0.0621578]
[1745114248359,1.23672,1617.3,1617.2,16.38179558]
[1745114248554,8.41552,1617.3,1617.2,16.37479762]
[1745114248759,13.41552,1617.3,1617.2,16.37479762]
[1745114248961,15.08592,1617.3,1617.2,16.37479762]
[1745114249168,17.31392,1617.3,1617.2,16.37479762]
[1745114249366,17.31392,1617.3,1617.2,4.53e-06]
[1745114249668,1.23703,1616.9,1616.8,13.20534315]
[1745114249861,5.20803,1616.9,1616.8,12.35944315]
[1745114250367,6.93423,1616.9,1616.8,12.35944315]
[1745114251172,5.20803,1616.9,1616.8,12.35944315]
[1745114251361,6.93423,1616.9,1616.8,12.35944315]
[1745114255964,1.23726,1616.6,1616.5,1.6974]
[1745114256164,5.20826,1616.6,1616.5,3.9254]
[1745114257663,3.971,1616.6,1616.5,10.16273]
[1745114257869,3.971,1616.8,1616.7,1.23718]
[1745114258072,3.96400204,1616.8,1616.7,1.23718]
[1745114258370,5.20111204,1616.8,1616.7,5.0]
[1745114258570,5.20111204,1616.8,1616.6,4.445]
[1745114259869,5.20111204,1616.8,1616.7,1.679]
[1745114260170,5.20111204,1616.8,1616.7,3.907]
[1745114260972,5.20111204,1616.8,1616.7,7.1148]
[1745114261665,5.20111204,1616.8,1616.7,8.35198]
[1745114261666,3.96400204,1616.8,1616.7,8.35198]
[1745114261873,5.20895,1617.0,1616.7,12.1148]
[1745114262070,3.972,1617.0,1616.9,4.44483]
[1745114262271,3.972,1617.0,1616.9,6.67283]
[1745114262272,5.20895,1617.0,1616.9,6.67283]
[1745114262472,5.20895,1617.0,1616.9,8.31553]
[1745114263265,5.20895,1617.0,1616.9,7.0785]
[1745114263473,5.20895,1617.0,1616.9,8.31553]
[1745114263872,3.972,1617.0,1616.9,8.31553]
[1745114265573,5.20895,1617.0,1616.9,8.31553]
[1745114268277,5.20895,1617.0,1616.9,7.0785]
[1745114268869,5.20895,1617.0,1616.9,8.31553]
[1745114269069,5.20895,1617.0,1616.9,6.08753]
[1745114270281,3.972,1617.0,1616.9,6.08753]
[1745114271078,3.972,1617.0,1616.9,8.31553]
[1745114272484,5.20895,1617.0,1616.9,8.31553]
[1745114272680,3.972,1617.0,1616.9,8.31553]
[1745114272880,5.20895,1617.0,1616.9,8.31553]
[1745114273581,3.972,1617.0,1616.9,8.31553]
[1745114273881,5.20895,1617.0,1616.9,8.31553]
[1745114274082,3.972,1617.0,1616.9,8.31553]
[1745114275184,3.972,1617.0,1616.9,5.10773]
[1745114275483,3.972,1617.0,1616.9,8.31553]
[1745114276484,3.972,1617.0,1616.9,9.13958966]
[1745114277077,3.972,1617.0,1616.9,9.13958861]
[1745114277275,3.972,1617.0,1616.9,6.91158861]
[1745114277476,5.20895,1617.0,1616.9,6.91158861]
[1745114278277,5.20895,1617.0,1616.9,9.13958861]
[1745114278882,3.972,1617.0,1616.9,9.13958861]
[1745114279076,5.20895,1617.0,1616.9,9.13958861]
[1745114279585,3.972,1617.0,1616.9,9.13958861]
[1745114281681,5.20883,1617.2,1617.1,1.23688]
[1745114281983,6.91363,1617.2,1617.1,1.23688]
[1745114282374,6.91363,1617.2,1617.1,2.90088]
[1745114283575,3.972,1617.2,1617.1,6.10868]
[1745114283976,3.972,1617.2,1617.1,6.93274885]
[1745114284185,3.972,1617.2,1617.1,6.93266884]
[1745114284487,6.86851,1617.4,1617.3,1.23672]
[1745114286191,1.23672,1617.3,1617.2,2.87694]
[1745114286488,1.23672,1617.3,1617.2,3.70039955]
[1745114286677,2.99292,1617.3,1617.2,3.70039955]
[1745114288089,1.7562,1617.3,1617.2,3.7008872]
[1745114288285,2.99292,1617.3,1617.2,3.7008872]
[1745114289094,2.99292,1617.3,1617.2,5.92878685]
[1745114289788,2.99292,1617.3,1617.2,5.10494]
[1745114289991,2.99292,1617.3,1617.2,2.228]
[1745114290193,1.2368,1617.2,1617.1,3.2078]
[1745114290390,3.6812,1617.2,1617.1,4.03180272]
[1745114290792,3.6812,1617.2,1617.1,3.2078]
[1745114295196,1.23695,1617.0,1616.9,2.94347]
[1745114295399,1.23695,1617.0,1616.9,6.97578016]
[1745114295600,1.23695,1617.0,1616.9,6.97575343]
[1745114296095,1.23695,1617.0,1616.9,5.73878343]
[1745114296490,2.93405,1617.0,1616.9,7.40318343]
[1745114297190,2.93405,1617.0,1616.9,9.63118343]
[1745114297391,2.93405,1617.0,1616.9,9.63123338]
[1745114298791,2.93405,1617.0,1616.9,7.92473338]
[1745114299097,2.93405,1617.0,1616.9,4.03233338]
[1745114299299,3.74555,1617.0,1616.9,4.03233338]
[1745114300293,3.74555,1617.0,1616.9,5.67603338]
[1745114302699,1.23695,1617.0,1616.9,6.91299338]
[1745114303096,1.23695,1617.0,1616.9,6.91322518]
[1745114303295,1.23695,1617.0,1616.9,9.14122518]
[1745114306299,1.23695,1617.0,1616.9,6.91322518]
[1745114306505,1.23695,1617.0,1616.9,6.91340686]
[1745114306903,1.23695,1617.0,1616.9,6.91339357]
[1745114307307,1.23695,1617.0,1616.9,9.14139357]
[1745114308103,1.23695,1617.0,1616.9,6.91347021]
[1745114310099,1.23695,1617.0,1616.9,9.14147021]
[1745114310501,1.23695,1617.0,1616.9,7.90451021]
[1745114310701,1.23695,1617.0,1616.9,9.14169523]
[1745114311404,2.98385,1617.0,1616.9,9.14169523]
[1745114312410,2.98385,1617.0,1616.9,5.93389523]
[1745114313200,2.98385,1617.0,1616.9,9.14169523]
[1745114314105,2.98385,1617.0,1616.9,6.91369523]
[1745114314311,2.98385,1617.0,1616.9,5.67666523]
[1745114314511,3.77585,1617.0,1616.9,5.67666523]
[1745114315014,1.23695,1617.0,1616.9,6.91369523]
[1745114315203,1.23695,1617.0,1616.9,9.14169523]
[1745114315404,7.80104,1617.1,1616.9,9.14169523]
[1745114315607,7.80104,1617.1,1617.0,1.6829]
[1745114319117,7.80104,1617.1,1617.0,2.50885388]
[1745114320512,11.91556137,1617.1,1617.0,2.50885388]
[1745114321720,11.91556137,1617.1,1617.0,0.82595388]
[1745114323620,7.80104,1617.1,1617.0,0.82595388]
[1745114324017,1.23695,1617.0,1616.9,5.7752]
[1745114324321,2.83305,1617.0,1616.9,6.60161887]
[1745114325815,2.83305,1617.0,1616.9,2.57961887]
[1745114326013,6.04085,1617.0,1616.9,0.82641887]
[1745114326213,1.23718,1616.7,1616.6,2.5098]
[1745114326410,1.23718,1616.7,1616.6,3.33632217]
[1745114326820,3.69868,1616.7,1616.6,3.33632217]
[1745114327724,3.69868,1616.7,1616.6,3.3360649]
[1745114329822,3.69868,1616.7,1616.6,4.5733249]
[1745114330211,2.83958,1616.7,1616.6,4.5733249]
[1745114330824,5.20817,1616.8,1616.7,1.23718]
[1745114331021,1.23711,1616.8,1616.7,6.9326449]
[1745114331212,1.23711,1616.8,1616.7,9.1606449]
[1745114333427,1.23711,1616.8,1616.7,9.15976488]
[1745114335333,5.20798,1617.0,1616.9,1.23703]
[1745114335531,5.20798,1617.0,1616.9,5.27021488]
[1745114335931,5.20798,1617.0,1616.9,6.85991488]
[1745114336429,5.20798,1617.0,1616.9,5.62288488]
[1745114337130,5.20798,1617.0,1616.9,7.85088488]
[1745114338331,5.20798,1617.0,1616.9,5.62288488]
[1745114338731,5.20798,1617.0,1616.9,6.85991488]
[1745114339231,5.20798,1617.0,1616.9,9.08791488]
[1745114339534,3.971,1617.0,1616.9,9.08791488]
[1745114339932,11.37960205,1617.2,1617.1,1.23688]
[1745114340126,11.37960205,1617.2,1617.1,2.06226488]
[1745114340328,10.14278205,1617.2,1617.1,5.27006488]
[1745114340530,7.40858205,1617.2,1617.1,8.66426488]
[1745114341133,7.40858205,1617.2,1617.1,8.66416343]
[1745114342235,7.40858205,1617.2,1617.1,8.66394244]
[1745114343335,1.2368,1617.2,1617.1,8.66394244]
[1745114348135,1.2368,1617.2,1617.1,8.66310007]
[1745114351138,1.2368,1617.2,1617.1,5.45530007]
[1745114351341,1.2368,1617.2,1617.1,8.66310007]
[1745114351740,1.23677,1617.3,1617.2,1.23675]
[1745114351947,5.20768,1617.4,1617.3,1.6912]
[1745114352144,5.20768,1617.4,1617.3,3.72772]
[1745114352444,5.20768,1617.4,1617.3,6.93552]
[1745114357547,5.20768,1617.4,1617.3,5.6988]
[1745114357851,5.20768,1617.4,1617.3,3.2078]
[1745114358049,6.88578,1617.4,1617.3,3.2078]
[1745114360352,1.2368,1617.2,1617.1,2.96236]
[1745114360541,1.2368,1617.2,1617.1,6.99477187]
[1745114363752,1.2368,1617.2,1617.1,3.78697187]
[1745114364153,1.2368,1617.2,1617.1,6.99477187]
[1745114364850,1.23677,1617.3,1617.2,1.2368]
[1745114365051,1.23677,1617.3,1617.2,3.76591187]
[1745114365444,1.23677,1617.3,1617.2,2.52911187]
[1745114365648,1.23677,1617.3,1617.2,3.76591187]
[1745114366754,5.20772,1617.4,1617.3,1.23672]
[1745114366944,5.20772,1617.4,1617.3,3.79752]
[1745114368252,5.20772,1617.4,1617.3,4.62348767]
[1745114368839,5.20772,1617.4,1617.3,4.62350534]
[1745114369854,5.20772,1617.4,1617.3,3.38678534]
[1745114370055,6.80692,1617.4,1617.3,4.62350534]
[1745114370255,6.80692,1617.4,1617.3,3.38678534]
[1745114370857,6.80692,1617.4,1617.3,4.62350534]
[1745114371344,1e-08,1617.6,1617.5,1.23657]
[1745114371543,1e-08,1617.6,1617.5,5.70754774]
[1745114371852,1e-08,1617.6,1617.5,10.70754774]
[1745114372053,1e-08,1617.6,1617.5,12.40124774]
[1745114372251,1e-08,1617.6,1617.5,14.62924774]
[1745114374458,1e-08,1617.6,1617.5,14.24879535]
[1745114375162,1e-08,1617.6,1617.5,14.68488618]
[1745114375356,1e-08,1617.6,1617.5,14.24879535]
[1745114375657,1e-08,1617.6,1617.5,9.24879535]
[1745114376255,1e-08,1617.6,1617.5,9.68472194]
[1745114376455,2.95342,1618.0,1617.9,1.23626]
[1745114377156,2.95342,1618.0,1617.9,2.90266]
[1745114382763,1.7172,1618.0,1617.9,2.90266]
[1745114383965,2.95993,1618.1,1618.0,1.23619]
[1745114384169,2.95993,1618.1,1618.0,2.92939]
[1745114384474,1.7238,1618.1,1618.0,4.51479]
[1745114384765,4.55541,1618.1,1618.0,4.51479]
[1745114389163,4.55541,1618.1,1618.0,3.2786]
[1745114389365,1.23619,1618.0,1617.9,3.2078]
[1745114389571,2.88829,1618.0,1617.9,3.2078]
[1745114389975,1.23634,1617.8,1617.7,6.87817]
[1745114390268,1.23634,1617.8,1617.7,7.75828938]
[1745114390670,2.88844,1617.8,1617.7,7.75828938]
[1745114391171,1.6521,1617.8,1617.7,7.75828938]
[1745114391373,2.88844,1617.8,1617.7,7.75828938]
[1745114391574,1.6521,1617.8,1617.7,7.75828938]
[1745114392375,1.23591,1618.4,1618.0,3.09045]
[1745114392575,1.23588,1618.4,1618.3,1.23593]
[1745114392873,1.671,1618.4,1618.3,1.23593]
[1745114393468,1.671,1618.4,1618.2,2.82451]
[1745114393669,2.90694,1618.4,1618.2,2.82447]
[1745114393884,2.90694,1618.4,1618.3,1.23596]
[1745114394864,1.671,1618.4,1618.3,1.23596]
[1745114395369,4.7832,1618.5,1618.4,1.23588]
[1745114395573,3.968,1618.5,1618.4,3.85658]
[1745114396177,5.6856,1618.5,1618.4,3.85658]
[1745114398479,5.6856,1618.5,1618.4,7.06438]
[1745114398879,6.92147,1618.5,1618.3,2.07801]
[1745114399070,2.5615,1618.4,1618.3,2.07801]
[1745114399274,3.968,1618.5,1618.4,1.23588]
[1745114399476,3.968,1618.5,1618.4,2.92828]
[1745114399777,5.7086,1618.5,1618.4,2.92828]
[1745114400486,6.94441,1618.5,1618.4,2.11602514]
[1745114400674,6.94441,1618.5,1618.4,2.11602598]
[1745114401283,6.94441,1618.5,1618.4,3.80842598]
[1745114401484,6.94441,1618.5,1618.4,3.80858356]
[1745114401685,5.7086,1618.5,1618.4,3.80858356]
[1745114401885,3.968,1618.5,1618.4,7.01638356]
[1745114402071,3.968,1618.5,1618.4,7.87728356]
[1745114405789,2.5773,1618.6,1618.5,1.23581]
[1745114405984,2.94253,1618.6,1618.5,2.83441]
[1745114407989,6.02361,1618.7,1618.6,1.23573]
[1745114408191,3.967,1618.7,1618.6,2.86513]
[1745114408488,3.967,1618.7,1618.6,6.07293]
[1745114408790,3.967,1618.7,1618.6,6.95190839]
[1745114409194,5.20265,1618.7,1618.6,6.95190839]
[1745114409382,3.967,1618.7,1618.6,6.95190839]
[1745114410488,1.23564,1618.8,1618.7,1.23565]
[1745114410683,1.23564,1618.8,1618.7,4.58085]
[1745114411793,11.6027,1618.9,1618.8,1.23558]
[1745114411794,5.6947,1618.9,1618.8,1.23558]
[1745114411983,6.9302,1618.9,1618.8,1.6721]
[1745114412588,3.989,1618.9,1618.8,2.90768]
[1745114412893,5.2245,1618.9,1618.8,1.6721]
[1745114413287,6.952,1618.9,1618.8,1.6721]
[1745114415697,6.952,1618.9,1618.8,2.90768]
[1745114415894,6.952,1618.9,1618.8,1.6721]
[1745114416302,3.08895,1618.8,1618.4,3.2078]
[1745114416597,1.23579,1618.6,1618.5,3.74161936]
[1745114417093,1.23579,1618.6,1618.5,2.86229]
[1745114417300,2.87329,1618.6,1618.5,2.86229]
[1745114417896,2.87329,1618.6,1618.5,1.6265]
[1745114418094,2.87329,1618.6,1618.5,3.74204884]
[1745114418792,2.87329,1618.6,1618.5,2.50623884]
[1745114418988,6.86229,1618.6,1618.5,2.50623884]
[1745114419191,1.23581,1618.5,1618.4,4.9001]
[1745114419393,2.87331,1618.5,1618.4,7.51262382]
[1745114420401,1.23581,1618.5,1618.4,8.7489238]
[1745114421002,3.989,1618.6,1618.4,7.5130438]
[1745114421299,6.86833,1618.6,1618.5,2.5328438]
[1745114421497,5.22473,1618.6,1618.5,2.5328438]
[1745114421706,3.989,1618.6,1618.5,3.7686538]
[1745114422093,1.23565,1618.7,1618.6,1.23573]
[1745114422294,1.23565,1618.7,1618.6,6.9763738]
[1745114424197,1.23565,1618.7,1618.6,5.7406438]
[1745114424399,2.96265,1618.7,1618.6,5.7406438]
[1745114426905,2.96265,1618.7,1618.6,6.9763738]
[1745114427905,2.96265,1618.7,1618.6,6.97873427]
[1745114429805,2.96265,1618.7,1618.6,6.09583]
[1745114430113,2.96265,1618.7,1618.6,5.74312621]
[1745114430708,2.96265,1618.7,1618.6,6.56312621]
[1745114431805,2.96265,1618.7,1618.6,7.79888014]
[1745114432919,2.96265,1618.7,1618.6,5.74315014]
[1745114433103,3.83315,1618.7,1618.6,0.88305014]
[1745114433303,6.06115,1618.7,1618.6,0.88305014]
[1745114433614,1.23581,1618.5,1618.4,6.88936]
[1745114433812,1.23581,1618.5,1618.4,7.77243349]
[1745114434808,1.23581,1618.5,1618.4,6.53657349]
[1745114435617,8.43261,1618.5,1618.4,0.88307349]
[1745114435816,1.23596,1618.3,1618.2,1.6097]
[1745114436006,1.23596,1618.3,1618.2,2.46372461]
[1745114436402,1.23611,1618.1,1618.0,23.81984297]
[1745114436616,1.23611,1618.1,1618.0,24.6733933]
[1745114437005,3.83411,1618.1,1618.0,26.2830933]
[1745114438120,2.97041,1618.1,1618.0,5.67048639]
[1745114438410,1.23611,1618.1,1618.0,5.67048639]
[1745114439216,1.23611,1618.1,1618.0,4.8175]
[1745114439402,4.44366,1618.5,1618.3,1.23591]
[1745114439608,8.39978205,1618.7,1618.4,1.23585]
[1745114439805,1.23581,1618.5,1618.4,1.23585]
[1745114440007,1.23581,1618.5,1618.4,2.08774982]
[1745114440404,6.17178205,1618.7,1618.4,0.85189982]
[1745114440610,1.23573,1618.6,1618.5,1.23576]
[1745114441719,1.23573,1618.6,1618.5,2.08758417]
[1745114443219,6.17178205,1618.7,1618.5,2.08761976]
[1745114443512,6.17178205,1618.7,1618.6,1.23573]
[1745114444131,6.17178205,1618.7,1618.6,2.08752646]
[1745114444821,7.40747205,1618.7,1618.6,2.08752646]
[1745114445012,7.40747205,1618.7,1618.6,2.08756414]
[1745114445507,1.23569,1618.7,1618.6,2.08756414]
[1745114447624,1.23573,1618.6,1618.5,1.23578]
[1745114447918,1.23573,1618.6,1618.5,2.08766736]
[1745114448625,3.69032,1618.7,1618.5,2.08766736]
[1745114448923,3.69032,1618.7,1618.6,1.23573]
[1745114451217,1.23573,1618.6,1618.5,5.27354]
[1745114451521,3.69032,1618.7,1618.6,1.23573]
[1745114451725,2.4546,1618.7,1618.6,1.23573]
[1745114452816,4.8599,1618.8,1618.7,1.23565]
[1745114453315,4.8599,1618.8,1618.7,2.02965]
[1745114453628,6.5538,1618.8,1618.7,2.02965]
[1745114454021,3.989,1618.8,1618.7,2.02965]
[1745114455224,11.89068205,1619.0,1618.9,1.2355]
[1745114455526,10.19678205,1619.0,1618.9,1.2355]
[1745114458029,4.025,1619.0,1618.9,1.2355]
[1745114460027,5.26042,1619.0,1618.9,1.2355]
[1745114461227,7.48842,1619.0,1618.9,2.0622]
[1745114461723,8.29562,1619.0,1618.9,2.0622]
[1745114462125,4.8322,1619.0,1618.9,2.0622]
[1745114462428,6.06762,1619.0,1618.9,2.8662]
[1745114463632,4.8322,1619.0,1618.9,2.8662]
[1745114464030,6.06762,1619.0,1618.9,2.8662]
[1745114464628,4.8322,1619.0,1618.9,2.8662]
[1745114465128,6.4349,1619.0,1618.9,2.8662]
[1745114466432,4.025,1619.0,1618.9,2.8662]
[1745114467335,5.26042,1619.0,1618.9,2.8662]
[1745114467632,4.025,1619.0,1618.9,2.8662]
[1745114468430,4.025,1619.0,1618.9,3.71768632]
[1745114468935,4.025,1619.0,1618.9,3.71761931]
[1745114471536,4.025,1619.0,1618.9,5.33861931]
[1745114471934,4.025,1619.0,1618.9,5.33904474]
[1745114474226,4.025,1619.0,1618.9,5.33896021]
[1745114474633,4.025,1619.0,1618.9,5.33892243]
[1745114478544,4.025,1619.0,1618.9,5.33929718]
[1745114479136,6.253,1619.0,1618.9,5.33929718]
[1745114479345,6.253,1619.0,1618.9,5.33927724]
[1745114479543,7.48842,1619.0,1618.9,2.08757724]
[1745114479743,10.00072,1619.0,1618.9,2.08757724]
[1745114481235,8.7653,1619.0,1618.9,2.08757724]
[1745114481651,7.9506,1619.0,1618.9,5.34637724]
[1745114482042,7.9506,1619.0,1618.9,5.34687776]
[1745114482249,5.7226,1619.0,1618.9,5.34685538]
[1745114484140,7.9506,1619.0,1618.9,5.34740542]
[1745114484639,6.253,1619.0,1618.9,5.34740542]
[1745114485146,4.025,1619.0,1618.9,5.34740542]
[1745114486639,3.2393,1619.2,1618.9,5.34740542]
[1745114486844,7.2273,1619.2,1619.1,4.44315]
[1745114487042,9.4553,1619.2,1619.1,5.29625542]
[1745114489839,9.4553,1619.2,1619.1,5.29611306]
[1745114491451,7.808,1619.2,1619.1,5.29611306]
[1745114491639,6.216,1619.2,1619.1,6.13791306]
[1745114491834,2.228,1619.2,1619.1,6.13791306]
[1745114492246,16.86218205,1619.4,1619.3,1.2352]
[1745114492547,12.54168205,1619.4,1619.3,5.29596306]
[1745114493150,14.76968205,1619.4,1619.3,6.92526306]
[1745114494540,8.5979,1619.4,1619.3,6.92526306]
[1745114498246,8.5979,1619.4,1619.3,6.0723]
[1745114498434,1.2353,1619.2,1619.1,1.23532]
[1745114498637,3.62826,1619.3,1619.1,2.08681231]
[1745114498836,1.5853,1619.2,1619.1,1.23535]
[1745114499253,3.8133,1619.2,1619.1,1.23535]
[1745114499854,5.04857,1619.2,1619.1,1.23535]
[1745114502250,1.23535,1619.1,1619.0,4.44321]
[1745114502451,7.68955,1619.1,1619.0,4.05968227]
[1745114502651,8.49875,1619.1,1619.0,4.05968227]
[1745114502849,8.49875,1619.1,1619.0,3.2078]
[1745114503256,10.72675,1619.1,1619.0,3.2078]
[1745114506462,1.23542,1619.0,1618.9,1.23549]
[1745114506758,2.86432,1619.0,1618.9,2.08753291]
[1745114507057,2.86432,1619.0,1618.9,2.08752746]
[1745114507256,5.09232,1619.0,1618.9,2.08752746]
[1745114507556,2.228,1619.0,1618.9,2.87832746]
[1745114507760,2.228,1619.0,1618.9,6.08612746]
[1745114508147,5.22239,1619.1,1619.0,1.23542]
[1745114508348,5.22239,1619.1,1619.0,4.47895746]
[1745114509059,7.45039,1619.1,1619.0,4.47895746]
[1745114510258,7.45039,1619.1,1619.0,3.24353746]
[1745114510859,7.45039,1619.1,1619.0,2.3915]
[1745114511060,9.14489,1619.1,1619.0,2.3915]
[1745114512763,1.23542,1619.0,1618.9,3.9986]
[1745114512953,3.61462,1619.0,1618.9,5.29570743]
[1745114513157,5.84262,1619.0,1618.9,5.29570743]
[1745114513354,5.84262,1619.0,1618.9,7.04700743]
[1745114515469,5.84262,1619.0,1618.9,7.04691456]
[1745114515864,5.84262,1619.0,1618.9,5.81141456]
[1745114516064,5.84262,1619.0,1618.9,7.04691456]
[1745114517370,2.228,1619.0,1618.9,7.04691456]
[1745114517568,2.228,1619.0,1618.9,7.92441456]
[1745114518361,2.228,1619.0,1618.9,7.92433146]
[1745114518567,12.07978205,1619.3,1619.2,1.23527]
[1745114518764,6.17178205,1619.3,1619.2,5.29530146]
[1745114519366,6.17178205,1619.3,1619.2,7.90830146]
[1745114519554,8.22904274,1619.4,1619.3,1.2352]
[1745114519760,4.87386657,1619.4,1619.3,8.37456912]
[1745114520070,4.87386657,1619.4,1619.3,13.3733728]
[1745114521470,4.87386657,1619.4,1619.3,13.37321545]
[1745114522362,4.87386657,1619.4,1619.3,7.93817364]
[1745114522767,4.87386657,1619.4,1619.3,9.68937364]
[1745114523271,7.10186657,1619.4,1619.3,9.68894431]
[1745114523472,2.228,1619.4,1619.3,17.92633852]
[1745114524377,2.228,1619.4,1619.3,12.07433852]